fUST/lending_fUST_20250606
["ID","MTS","AMOUNT","RATE_DAILY","PERIOD"]
[364685367,1749201034987,-440.0,0.00022191,2]
[364685368,1749201034997,-440.0,0.00022191,2]
[364685369,1749201035007,-420.0,0.00022191,2]
[364685370,1749201035017,-440.0,0.00022191,2]
[364685371,1749201035027,-440.0,0.00022191,2]
[364685372,1749201035039,-440.0,0.00022191,2]
[364685373,1749201035048,-440.0,0.00022191,2]
[364685374,1749201035058,-440.0,0.00022191,2]
[364685375,1749201035068,-420.0,0.00022191,2]
[364685376,1749201035078,-440.0,0.00022191,2]
[364685377,1749201035087,-420.0,0.00022191,2]
[364685378,1749201035096,-440.0,0.00022191,2]
[364685379,1749201035106,-554.89,0.00022191,2]
[364685380,1749201035116,-440.0,0.00022191,2]
[364685381,1749201035126,-182.78893972,0.00022191,2]
[364685382,1749201035136,-440.0,0.00022191,2]
[364685383,1749201035146,-440.0,0.00022191,2]
[364685384,1749201035156,-440.0,0.00022191,2]
[364685385,1749201035166,-440.0,0.00022191,2]
[364685386,1749201035175,-440.0,0.00022191,2]
[364685387,1749201035187,-364.59,0.00022191,2]
[364685388,1749201035196,-440.0,0.00022191,2]
[364685389,1749201035206,-440.0,0.00022191,2]
[364685390,1749201035216,-440.0,0.00022191,2]
[364685391,1749201035226,-4124.88,0.00022191,2]
[364685392,1749201035236,-572.77,0.00022191,2]
[364685393,1749201035246,-211.33310592,0.00022233,6]
[364685394,1749201035255,-511.28541419,0.00022239,2]
[364685395,1749201035265,-500.10828756,0.00022239,2]
[364685396,1749201035275,-500.0,0.0002224,2]
[364685397,1749201035285,-500.0,0.0002224,2]
[364685398,1749201035295,-430.0,0.0002244,2]
[364685399,1749201035305,-5000.0,0.0002244,2]
[364685400,1749201035315,-207.4,0.0002244,2]
[364685401,1749201035325,-440.0,0.00022465,2]
[364685402,1749201035335,-394.84768031,0.00022465,2]
[364685403,1749201035345,-440.0,0.00022465,2]
[364685404,1749201035355,-410.0,0.00022465,2]
[364685405,1749201035365,-410.0,0.00022465,2]
[364685406,1749201035375,-440.0,0.00022465,2]
[364685407,1749201035385,-440.0,0.00022465,2]
[364685408,1749201035395,-440.0,0.00022465,2]
[364685409,1749201035404,-430.0,0.00022465,2]
[364685410,1749201035414,-192.52,0.00022465,2]
[364685411,1749201035424,-390.68571527,0.00022465,2]
[364685412,1749201035434,-440.0,0.00022465,2]
[364685413,1749201035444,-440.0,0.00022465,2]
[364685414,1749201035454,-440.0,0.00022465,2]
[364685415,1749201035464,-440.0,0.00022465,2]
[364685416,1749201035473,-440.0,0.00022465,2]
[364685417,1749201035483,-440.0,0.00022465,2]
[364685418,1749201035494,-440.0,0.00022465,2]
[364685419,1749201035504,-440.0,0.00022465,2]
[364685420,1749201035514,-440.0,0.00022465,2]
[364685421,1749201035526,-410.0,0.00022465,2]
[364685422,1749201035537,-440.0,0.00022465,2]
[364685423,1749201035547,-440.0,0.00022465,2]
[364685424,1749201035556,-207.64917691,0.00022465,2]
[364685425,1749201035567,-440.0,0.00022465,2]
[364685426,1749201035577,-361.22844063,0.00022465,2]
[364685427,1749201035590,-410.0,0.00022465,2]
[364685428,1749201035599,-440.0,0.00022465,2]
[364685429,1749201035609,-410.0,0.00022465,2]
[364685430,1749201035619,-216.15897535,0.00022465,2]
[364685431,1749201035628,-410.0,0.00022465,2]
[364685432,1749201035771,-440.0,0.00022465,2]
[364685433,1749201035782,-440.0,0.00022465,2]
[364685434,1749201035795,-440.0,0.00022465,2]
[364685435,1749201035805,-410.0,0.00022465,2]
[364685436,1749201035814,-440.0,0.00022465,2]
[364685437,1749201035824,-440.0,0.00022465,2]
[364685438,1749201035834,-410.0,0.00022465,2]
[364685439,1749201035845,-410.0,0.00022465,2]
[364685440,1749201035855,-440.0,0.00022465,2]
[364685441,1749201035865,-554.89,0.00022465,2]
[364685442,1749201035876,-440.0,0.00022465,2]
[364685443,1749201035885,-440.0,0.00022465,2]
[364685444,1749201035896,-440.0,0.00022465,2]
[364685445,1749201035906,-440.0,0.00022465,2]
[364685446,1749201035915,-440.0,0.00022465,2]
[364685447,1749201035926,-410.0,0.00022465,2]
[364685448,1749201035936,-440.0,0.00022465,2]
[364685449,1749201035945,-440.0,0.00022465,2]
[364685450,1749201035956,-440.0,0.00022465,2]
[364685451,1749201035965,-4124.88,0.00022465,2]
[364685452,1749201035975,-572.77,0.00022465,2]
[364685453,1749201035985,-160.0,0.00022564,2]
[364685454,1749201035995,-229.52673067,0.00022564,2]
[364685455,1749201036006,-834.50537533,0.00022564,2]
[364685456,1749201036018,-423.83542519,0.00022564,2]
[364685457,1749201036028,-160.0,0.00022564,2]
[364685458,1749201036042,-842.5625,0.00022564,2]
[364685459,1749201036051,-160.0,0.00022564,2]
[364685460,1749201036061,-160.0,0.00022564,2]
[364685461,1749201036071,-599.85,0.00022738,3]
[364685462,1749201036080,-283.40367879,0.00022739,2]
[364685463,1749201036090,-440.0,0.00022739,2]
[364685464,1749201036100,-550.89,0.00022739,2]
[364685465,1749201036109,-440.0,0.00022739,2]
[364685466,1749201036119,-440.0,0.00022739,2]
[364685467,1749201036129,-466.81606275,0.00022739,2]
[364685468,1749201036138,-346.68,0.00022739,2]
[364685469,1749201036148,-170.80466863,0.00022739,2]
[364685470,1749201036158,-440.0,0.00022739,2]
[364685471,1749201036168,-440.0,0.00022739,2]
[364685472,1749201036178,-440.0,0.00022739,2]
[364685473,1749201036188,-440.0,0.00022739,2]
[364685474,1749201036198,-440.0,0.00022739,2]
[364685475,1749201036209,-440.0,0.00022739,2]
[364685476,1749201036220,-440.0,0.00022739,2]
[364685477,1749201036230,-410.0,0.00022739,2]
[364685478,1749201036239,-440.0,0.00022739,2]
[364685479,1749201036249,-193.31754611,0.00022739,2]
[364685480,1749201036259,-380.0,0.00022739,2]
[364685481,1749201036268,-440.0,0.00022739,2]
[364685482,1749201036278,-440.0,0.00022739,2]
[364685483,1749201036291,-440.0,0.00022739,2]
[364685484,1749201036301,-440.0,0.00022739,2]
[364685485,1749201036311,-554.89,0.00022739,2]
[364685486,1749201036321,-440.0,0.00022739,2]
[364685487,1749201036331,-440.0,0.00022739,2]
[364685488,1749201036340,-351.19873853,0.00022739,2]
[364685489,1749201036350,-410.0,0.00022739,2]
[364685490,1749201036360,-440.0,0.00022739,2]
[364685491,1749201036369,-440.0,0.00022739,2]
[364685492,1749201036378,-440.0,0.00022739,2]
[364685493,1749201036388,-440.0,0.00022739,2]
[364685494,1749201036397,-4124.88,0.00022739,2]
[364685495,1749201036408,-572.77,0.00022739,2]
[364685496,1749201036418,-1300.0,0.00022757,2]
[364685497,1749201036429,-420.0,0.00022766,2]
[364685498,1749201036438,-420.0,0.00022768,2]
[364685499,1749201036448,-500.0,0.00022788,2]
[364685500,1749201036458,-1000.0,0.00022788,2]
[364685501,1749201036468,-151.0,0.000228,7]
[364685502,1749201036478,-5000.0,0.00022988,2]
[364685503,1749201036488,-15472.0,0.00023,2]
[364685504,1749201036497,-174.97892609,0.00023013,2]
[364685505,1749201036507,-440.0,0.00023013,2]
[364685506,1749201036517,-440.0,0.00023013,2]
[364685507,1749201036526,-440.0,0.00023013,2]
[364685508,1749201036538,-440.0,0.00023013,2]
[364685509,1749201036548,-440.0,0.00023013,2]
[364685510,1749201036558,-440.0,0.00023013,2]
[364685511,1749201036568,-440.0,0.00023013,2]
[364685512,1749201036578,-440.0,0.00023013,2]
[364685513,1749201036587,-440.0,0.00023013,2]
[364685514,1749201036597,-440.0,0.00023013,2]
[364685515,1749201036606,-440.0,0.00023013,2]
[364685516,1749201036615,-440.0,0.00023013,2]
[364685517,1749201036625,-440.0,0.00023013,2]
[364685518,1749201036635,-440.0,0.00023013,2]
[364685519,1749201036645,-151.0,0.00023013,7]
[364685520,1749201036654,-151.0,0.00023013,7]
[364685521,1749201036664,-554.89,0.00023013,2]
[364685522,1749201036673,-440.0,0.00023013,2]
[364685523,1749201036683,-440.0,0.00023013,2]
[364685524,1749201036692,-440.0,0.00023013,2]
[364685525,1749201036702,-250.61033726,0.00023013,2]
[364685526,1749201036712,-440.0,0.00023013,2]
[364685527,1749201036722,-440.0,0.00023013,2]
[364685528,1749201036732,-4124.88,0.00023013,2]
[364685529,1749201036741,-572.77,0.00023013,2]
[364685530,1749201036752,-440.0,0.00023287,2]
[364685531,1749201036762,-440.0,0.00023287,2]
[364685532,1749201036772,-323.40448162,0.00023287,2]
[364685554,1749201038027,-500.0,0.00020927,2]
[364685556,1749201038038,-500.0,0.00020927,2]
[364685558,1749201038048,-500.0,0.00020927,2]
[364685560,1749201038059,-302.21058443,0.00020927,2]
[364685562,1749201038068,-500.0,0.00021915,2]
[364685564,1749201038078,-500.0,0.00021915,2]
[364685567,1749201038088,-500.0,0.00021915,2]
[364685569,1749201038097,-500.0,0.00021915,2]
[364685571,1749201038107,-524.46958389,0.00021915,2]
[364685573,1749201038116,-440.0,0.00023287,2]
[364685575,1749201038126,-440.0,0.00023287,2]
[364685577,1749201038136,-440.0,0.00023287,2]
[364685579,1749201038145,-440.0,0.00023287,2]
[364685581,1749201038155,-440.0,0.00023287,2]
[364685583,1749201038165,-440.0,0.00023287,2]
[364685585,1749201038174,-440.0,0.00023287,2]
[364685587,1749201038184,-440.0,0.00023287,2]
[364685589,1749201038194,-538.45399973,0.00023287,2]
[364685591,1749201038203,-440.0,0.00023287,2]
[364685593,1749201038213,-440.0,0.00023287,2]
[364685595,1749201038222,-554.89,0.00023287,2]
[364685596,1749201038232,-440.0,0.00023287,2]
[364685597,1749201038242,-440.0,0.00023287,2]
[364685598,1749201038251,-440.0,0.00023287,2]
[364685599,1749201038261,-440.0,0.00023287,2]
[364685600,1749201038271,-440.0,0.00023287,2]
[364685601,1749201038281,-4124.88,0.00023287,2]
[364685602,1749201038291,-572.77,0.00023287,2]
[364685603,1749201038301,-405.25949644,0.00023295,3]
[364685604,1749201038311,-1500.0,0.00023336,2]
[364685605,1749201038321,-583.64,0.000234,7]
[364685606,1749201038331,-151.0,0.000234,7]
[364685607,1749201038340,-728.4905794,0.00023452,2]
[364685608,1749201038349,-5000.0,0.00023536,2]
[364685609,1749201038359,-440.0,0.00023561,2]
[364685610,1749201038369,-440.0,0.00023561,2]
[364685611,1749201038379,-440.0,0.00023561,2]
[364685612,1749201038389,-544.88,0.00023561,2]
[364685613,1749201038399,-440.0,0.00023561,2]
[364685614,1749201038409,-440.0,0.00023561,2]
[364685615,1749201038419,-440.0,0.00023561,2]
[364685616,1749201038428,-489.15734465,0.00023561,2]
[364685617,1749201038438,-42.43103189,0.00023561,2]
[364685618,1749201038450,-397.56896811,0.00023561,2]
[364685619,1749201038459,-146.17003262,0.00023561,2]
[364685620,1749201038471,-293.82996738,0.00023561,2]
[364685621,1749201038480,-178.92,0.00023561,2]
[364685622,1749201038490,-5.56444738,0.00023561,2]
[364685623,1749201038502,-470.27555262,0.00023561,2]
[364685624,1749201038511,-554.89,0.00023561,2]
[364685625,1749201038521,-416.24,0.00023561,2]
[364685626,1749201038530,-440.0,0.00023561,2]
[364685627,1749201038539,-440.0,0.00023561,2]
[364685628,1749201038549,-440.0,0.00023561,2]
[364685629,1749201038559,-440.0,0.00023561,2]
[364685630,1749201038568,-434.04280532,0.00023561,2]
[364685651,1749201040444,-3690.83719468,0.00023561,2]
[364685653,1749201040454,-572.77,0.00023561,2]
[364685654,1749201040463,-211.33310592,0.00023567,9]
[364685655,1749201040474,-311.0529857,0.00023589,2]
[364685657,1749201040483,-572.9277863,0.00023589,2]
[364685658,1749201040493,-240.0571315,0.00023589,2]
[364685659,1749201040503,-153.0,0.00023589,2]
[364685660,1749201040514,-176.6779968,0.00023589,2]
[364685661,1749201040524,-176.6779968,0.00023589,2]
[364685662,1749201040534,-158.6329813,0.00023589,2]
[364685663,1749201040544,-572.9277863,0.00023589,2]
[364685664,1749201040554,-158.6329813,0.00023589,2]
[364685665,1749201040564,-153.0,0.00023589,2]
[364685666,1749201040574,-176.6779968,0.00023589,2]
[364685667,1749201040584,-572.9277863,0.00023589,2]
[364685668,1749201040593,-158.6329813,0.00023589,2]
[364685669,1749201040603,-572.9277863,0.00023589,2]
[364685670,1749201040613,-176.6779968,0.00023589,2]
[364685671,1749201040623,-158.6329813,0.00023589,2]
[364685672,1749201040634,-153.0,0.00023589,2]
[364685673,1749201040644,-176.6779968,0.00023589,2]
[364685674,1749201040654,-572.9277863,0.00023589,2]
[364685675,1749201040663,-158.6329813,0.00023589,2]
[364685676,1749201040673,-176.6779968,0.00023589,2]
[364685677,1749201040682,-572.9277863,0.00023589,2]
[364685678,1749201040692,-158.6329813,0.00023589,2]
[364685679,1749201040702,-153.0,0.00023589,2]
[364685680,1749201040711,-176.6779968,0.00023589,2]
[364685681,1749201040721,-572.9277863,0.00023589,2]
[364685682,1749201040731,-5225.27566392,0.000238,2]
[364685683,1749201040743,-17223.1349762,0.000238,2]
[364685684,1749201040759,-3443.47236068,0.000238,2]
[364685699,1749201043132,-164.97348199,0.000209,2]
[364685700,1749201043142,-430.0,0.00021917,2]
[364685701,1749201043151,-158.6329813,0.00023589,2]
[364685702,1749201043160,-55.37178966,0.000238,2]
[364685738,1749201734799,268.320607,0.00013699,2]
[364685743,1749201765426,21551.73370542,0.00024,120]
[364685757,1749201931123,-150.0,0.00018557,2]
[364685758,1749201931147,-150.0,0.00019441,2]
[364685759,1749201931173,-186.88466926,0.00019948,2]
[364685760,1749201931196,-268.320607,0.00020187,2]
[364685761,1749201931218,-603.6436589,0.00020247,2]
[364685762,1749201931240,-900.0,0.00020565,2]
[364685763,1749201931263,-708.31933735,0.00021236,2]
[364685764,1749201931287,-900.0,0.00021661,2]
[364685765,1749201931312,-200.24562049,0.00021916,2]
[364685766,1749201931335,-161.903,0.00021916,2]
[364685767,1749201931359,-238.921387,0.00021916,2]
[364685770,1749201937102,-61.078613,0.00021916,2]
[364685771,1749201937125,-276.58709419,0.00021916,2]
[364685783,1749202028074,-219.37146286,0.00020565,2]
[364685784,1749202029095,-580.62853714,0.00020565,2]
[364685785,1749202029120,-298.08170224,0.00021661,2]
[364685786,1749202032081,-501.91829776,0.00021661,2]
[364685787,1749202032104,-105.6639496,0.00021817,2]
[364685790,1749202033089,-59.30953238,0.00021817,2]
[364685791,1749202033114,-143.33757009,0.000219,2]
[364685793,1749202045086,-296.6240264,0.000219,2]
[364685794,1749202049090,-291.03279856,0.000219,2]
[364685795,1749202049114,-187.1129925,0.00021903,2]
[364685796,1749202049137,-500.0,0.00021903,2]
[364685797,1749202049162,-93.06324729,0.00021903,2]
[364685801,1749202053141,-406.93675271,0.00021903,2]
[364685802,1749202053168,-500.0,0.00021903,2]
[364685803,1749202053194,-500.0,0.00021903,2]
[364685804,1749202053221,-293.03103302,0.00021903,2]
[364685805,1749202053245,-500.0,0.00021903,2]
[364685806,1749202053268,-210.37375723,0.00021903,2]
[364685807,1749202053292,-500.0,0.00021903,2]
[364685808,1749202053316,-500.0,0.00021903,2]
[364685809,1749202053340,-500.0,0.00021903,2]
[364685810,1749202053366,-500.0,0.00021903,2]
[364685811,1749202053389,-500.0,0.00021903,2]
[364685812,1749202053414,-500.0,0.00021903,2]
[364685813,1749202053437,-328.62613169,0.00021903,2]
[364685814,1749202053459,-500.0,0.00021903,2]
[364685815,1749202053481,-14187.50567989,0.00021904,2]
[364685823,1749202119333,591.31031664,2.3e-05,30]
[364685829,1749202150091,-157.80180675,0.000187,2]
[364685830,1749202150112,-631.25327941,0.00019,2]
[364685831,1749202154205,-6658.14379182,0.00019,2]
[364685835,1749202179138,193.64232632,0.0001948,2]
[364685836,1749202179161,38.25500818,0.0001948,2]
[364686049,1749202238426,-58.48195481,0.0001948,2]
[364686050,1749202238436,-846.45059909,0.0002,2]
[364686051,1749202238446,-700.0,0.00020565,2]
[364686052,1749202238455,-207.38728098,0.000207,3]
[364686053,1749202238464,-207.38728094,0.000207,3]
[364686054,1749202238473,-207.38728094,0.00021011,4]
[364686055,1749202238482,-207.38728094,0.00021567,5]
[364686056,1749202238491,-700.0,0.00021661,2]
[364686057,1749202238501,-710.64003316,0.000219,2]
[364686058,1749202238510,-4067.06238566,0.00021904,2]
[364686059,1749202238520,-298.0,0.00021915,2]
[364686060,1749202238529,-592.06957019,0.00021916,2]
[364686061,1749202238538,-440.0,0.00021917,2]
[364686062,1749202238550,-165.40279732,0.00021917,2]
[364686063,1749202238560,-500.88314752,0.00021917,2]
[364686065,1749202238569,-440.0,0.00021917,2]
[364686066,1749202238578,-440.0,0.00021917,2]
[364686068,1749202238587,-430.0,0.00021917,2]
[364686069,1749202238597,-440.0,0.00021917,2]
[364686070,1749202238606,-440.0,0.00021917,2]
[364686071,1749202238616,-521.78576508,0.00021917,2]
[364686072,1749202238625,-440.0,0.00021917,2]
[364686073,1749202238635,-430.0,0.00021917,2]
[364686074,1749202238644,-440.0,0.00021917,2]
[364686075,1749202238653,-440.0,0.00021917,2]
[364686076,1749202238663,-440.0,0.00021917,2]
[364686077,1749202238672,-440.0,0.00021917,2]
[364686078,1749202238681,-230.07704568,0.00021917,2]
[364686079,1749202238691,-500.0,0.00021917,2]
[364686080,1749202238700,-440.0,0.00021917,2]
[364686081,1749202238710,-430.0,0.00021917,2]
[364686082,1749202238719,-440.0,0.00021917,2]
[364686083,1749202238728,-430.82946357,0.00021917,2]
[364686084,1749202238737,-440.0,0.00021917,2]
[364686085,1749202238746,-440.0,0.00021917,2]
[364686086,1749202238756,-440.0,0.00021917,2]
[364686087,1749202238766,-430.0,0.00021917,2]
[364686088,1749202238775,-431.7185109,0.00021917,2]
[364686089,1749202238784,-440.0,0.00021917,2]
[364686090,1749202238794,-440.0,0.00021917,2]
[364686091,1749202238804,-440.0,0.00021917,2]
[364686092,1749202238813,-183.62881099,0.00021917,2]
[364686093,1749202238823,-430.0,0.00021917,2]
[364686094,1749202238832,-440.0,0.00021917,2]
[364686095,1749202238842,-440.0,0.00021917,2]
[364686096,1749202238854,-264.46,0.00021917,2]
[364686097,1749202238864,-430.0,0.00021917,2]
[364686098,1749202238873,-443.97466153,0.00021917,2]
[364686099,1749202238883,-495.54,0.00021917,2]
[364686101,1749202238892,-430.0,0.00021917,2]
[364686102,1749202238902,-440.0,0.00021917,2]
[364686103,1749202238911,-158.58,0.00021917,2]
[364686104,1749202238921,-376.32,0.00021917,2]
[364686105,1749202238930,-430.0,0.00021917,2]
[364686106,1749202238940,-483.65875036,0.00021917,2]
[364686107,1749202238949,-430.0,0.00021917,2]
[364686108,1749202238968,-440.0,0.00021917,2]
[364686109,1749202238980,-186.71549812,0.00021917,2]
[364686110,1749202238990,-440.0,0.00021917,2]
[364686111,1749202239000,-440.0,0.00021917,2]
[364686112,1749202239010,-430.0,0.00021917,2]
[364686113,1749202239021,-440.0,0.00021917,2]
[364686114,1749202239031,-440.0,0.00021917,2]
[364686115,1749202239040,-440.0,0.00021917,2]
[364686116,1749202239050,-360.84265535,0.00021917,2]
[364686117,1749202239060,-440.0,0.00021917,2]
[364686118,1749202239070,-151.0,0.00021917,2]
[364686119,1749202239080,-154.45857055,0.00021917,2]
[364686120,1749202239090,-151.0,0.00021917,2]
[364686121,1749202239102,-440.0,0.00021917,2]
[364686122,1749202239112,-440.0,0.00021917,2]
[364686123,1749202239122,-440.0,0.00021917,2]
[364686124,1749202239131,-440.0,0.00021917,2]
[364686125,1749202239142,-440.0,0.00021917,2]
[364686126,1749202239152,-440.0,0.00021917,2]
[364686127,1749202239162,-440.0,0.00021917,2]
[364686128,1749202239171,-157.86789901,0.00021917,2]
[364686129,1749202239181,-440.0,0.00021917,2]
[364686130,1749202239191,-440.0,0.00021917,2]
[364686131,1749202239206,-440.0,0.00021917,2]
[364686132,1749202239216,-522.20250663,0.00021917,2]
[364686133,1749202239226,-440.0,0.00021917,2]
[364686134,1749202239236,-2921.79,0.00021917,2]
[364686135,1749202239247,-207.38728094,0.00022122,6]
[364686136,1749202239258,-38741.86847,0.0002219,2]
[364686137,1749202239268,-500.0,0.0002219,2]
[364686138,1749202239279,-500.0,0.0002219,2]
[364686139,1749202239289,-500.0,0.0002219,2]
[364686140,1749202239299,-500.0,0.0002219,2]
[364686141,1749202239309,-267.12870872,0.0002219,2]
[364686142,1749202239318,-440.0,0.00022191,2]
[364686143,1749202239328,-440.0,0.00022191,2]
[364686144,1749202239338,-440.0,0.00022191,2]
[364686145,1749202239350,-430.0,0.00022191,2]
[364686146,1749202239360,-440.0,0.00022191,2]
[364686147,1749202239370,-440.0,0.00022191,2]
[364686148,1749202239380,-440.0,0.00022191,2]
[364686149,1749202239390,-440.0,0.00022191,2]
[364686150,1749202239401,-440.0,0.00022191,2]
[364686151,1749202239411,-440.0,0.00022191,2]
[364686152,1749202239421,-156.67835044,0.00022191,2]
[364686153,1749202239431,-440.0,0.00022191,2]
[364686154,1749202239441,-440.0,0.00022191,2]
[364686155,1749202239450,-440.0,0.00022191,2]
[364686156,1749202239460,-440.0,0.00022191,2]
[364686157,1749202239470,-440.0,0.00022191,2]
[364686158,1749202239480,-440.0,0.00022191,2]
[364686159,1749202239490,-440.0,0.00022191,2]
[364686160,1749202239499,-440.0,0.00022191,2]
[364686161,1749202239510,-2921.79,0.00022191,2]
[364686162,1749202239519,-207.4,0.0002244,2]
[364686163,1749202239529,-440.0,0.00022465,2]
[364686164,1749202239539,-440.0,0.00022465,2]
[364686165,1749202239549,-444.52,0.00022465,2]
[364686166,1749202239559,-280.16,0.00022465,2]
[364686167,1749202239568,-572.3,0.00022465,2]
[364686168,1749202239578,-440.0,0.00022465,2]
[364686169,1749202239588,-500.46,0.00022465,2]
[364686170,1749202239600,-440.0,0.00022465,2]
[364686171,1749202239610,-440.0,0.00022465,2]
[364686172,1749202239620,-440.0,0.00022465,2]
[364686173,1749202239629,-440.0,0.00022465,2]
[364686174,1749202239639,-440.0,0.00022465,2]
[364686175,1749202239650,-440.0,0.00022465,2]
[364686176,1749202239660,-440.0,0.00022465,2]
[364686177,1749202239670,-440.0,0.00022465,2]
[364686178,1749202239679,-440.0,0.00022465,2]
[364686179,1749202239689,-2921.79,0.00022465,2]
[364686180,1749202239699,-3479.93,0.00022482,2]
[364686181,1749202239708,-4000.0,0.00022489,2]
[364686182,1749202239718,-423.83542519,0.00022537,2]
[364686183,1749202239729,-229.52673067,0.00022537,2]
[364686184,1749202239738,-3400.0,0.00022542,2]
[364686185,1749202239748,-834.50537533,0.00022545,2]
[364686186,1749202239758,-160.0,0.00022545,2]
[364686187,1749202239769,-212.976918,0.00022545,2]
[364686188,1749202239781,-207.38728094,0.00022678,7]
[364686189,1749202239791,-3983.34683703,0.000227,2]
[364686190,1749202239801,-500.0,0.00022738,2]
[364686191,1749202239811,-440.0,0.00022739,2]
[364686192,1749202239821,-440.0,0.00022739,2]
[364686193,1749202239831,-440.0,0.00022739,2]
[364686194,1749202239843,-440.0,0.00022739,2]
[364686195,1749202239855,-440.0,0.00022739,2]
[364686196,1749202239866,-440.0,0.00022739,2]
[364686197,1749202239877,-440.0,0.00022739,2]
[364686199,1749202239890,-440.0,0.00022739,2]
[364686201,1749202239901,-440.0,0.00022739,2]
[364686202,1749202239911,-440.0,0.00022739,2]
[364686204,1749202239920,-440.0,0.00022739,2]
[364686206,1749202239930,-440.0,0.00022739,2]
[364686208,1749202239948,-2921.79,0.00022739,2]
[364686209,1749202239959,-700.0,0.00022757,2]
[364686211,1749202239969,-572.9277863,0.00022767,2]
[364686212,1749202239979,-174.016603,0.00022767,2]
[364686213,1749202239989,-176.6779968,0.000228,2]
[364686214,1749202239998,-572.9277863,0.000228,2]
[364686215,1749202240008,-153.0,0.000228,2]
[364686216,1749202240018,-6000.0,0.00022892,2]
[364686217,1749202240028,-176.6779968,0.000229,2]
[364686218,1749202240038,-572.9277863,0.000229,2]
[364686219,1749202240048,-946.7776351,0.000229,2]
[364686220,1749202240058,-171.30798,0.00022931,2]
[364686221,1749202240068,-7000.0,0.00022986,2]
[364686222,1749202240078,-151.0,0.00023,7]
[364686240,1749202240247,-440.0,0.00023013,2]
[364686242,1749202240257,-440.0,0.00023013,2]
[364686244,1749202240268,-440.0,0.00023013,2]
[364686246,1749202240277,-440.0,0.00023013,2]
[364686248,1749202240287,-440.0,0.00023013,2]
[364686250,1749202240297,-440.0,0.00023013,2]
[364686252,1749202240307,-440.0,0.00023013,2]
[364686254,1749202240317,-440.0,0.00023013,2]
[364686256,1749202240327,-440.0,0.00023013,2]
[364686258,1749202240337,-440.0,0.00023013,2]
[364686260,1749202240347,-440.0,0.00023013,2]
[364686262,1749202240358,-440.0,0.00023013,2]
[364686264,1749202240368,-2921.79,0.00023013,2]
[364686266,1749202240378,-8000.0,0.00023148,2]
[364686268,1749202240387,-157.52276001,0.00023195,2]
[364686270,1749202240396,-207.38728094,0.00023233,8]
[364686272,1749202240405,-440.0,0.00023287,2]
[364686274,1749202240415,-440.0,0.00023287,2]
[364686276,1749202240424,-440.0,0.00023287,2]
[364686278,1749202240433,-440.0,0.00023287,2]
[364686280,1749202240443,-440.0,0.00023287,2]
[364686282,1749202240452,-440.0,0.00023287,2]
[364686284,1749202240461,-440.0,0.00023287,2]
[364686286,1749202240473,-440.0,0.00023287,2]
[364686288,1749202240482,-376.82551838,0.00023287,2]
[364686290,1749202240491,-440.0,0.00023287,2]
[364686292,1749202240501,-440.0,0.00023287,2]
[364686294,1749202240510,-2921.79,0.00023287,2]
[364686296,1749202240520,-155.4138332,0.00023315,2]